[Event "Late-Titled-Tuesday-Blitz-September-05-2023"]
[Site "Chess.com"]
[Date "2023.09.05"]
[Round "3"]
[White "GarayevKanan"]
[Black "Dontmesswithme_2"]
[Result "1-0"]
[WhiteElo "2710"]
[BlackElo "2483"]
[TimeControl "180+1"]
[EndTime "14:24:04 PDT"]
[Termination "GarayevKanan won by resignation"]

1. e4 {[%clk 0:03:00.9]} 1... c5 {[%clk 0:02:58.2]} 2. Nf3 {[%clk 0:02:59.1]}
2... d6 {[%clk 0:02:55.9]} 3. Bb5+ {[%clk 0:02:56.6]} 3... Nd7 {[%clk
0:02:55.4]} 4. O-O {[%clk 0:02:55.6]} 4... Nf6 {[%clk 0:02:52.8]} 5. Re1 {[%clk
0:02:52.6]} 5... a6 {[%clk 0:02:53]} 6. Bf1 {[%clk 0:02:51.5]} 6... b6 {[%clk
0:02:53.3]} 7. d4 {[%clk 0:02:48.1]} 7... cxd4 {[%clk 0:02:52.8]} 8. Nxd4 {[%clk
0:02:49]} 8... Bb7 {[%clk 0:02:51.1]} 9. Nc3 {[%clk 0:02:46.1]} 9... e6 {[%clk
0:02:43.1]} 10. g3 {[%clk 0:02:42]} 10... b5 {[%clk 0:02:42]} 11. a3 {[%clk
0:02:40.3]} 11... Be7 {[%clk 0:02:41.4]} 12. Bg2 {[%clk 0:02:37.9]} 12... O-O
{[%clk 0:02:40.6]} 13. e5 {[%clk 0:02:04.2]} 13... Nd5 {[%clk 0:02:29.8]} 14.
Nxd5 {[%clk 0:01:58.8]} 14... Bxd5 {[%clk 0:02:26.8]} 15. Bxd5 {[%clk
0:01:58.2]} 15... exd5 {[%clk 0:02:26.6]} 16. Nc6 {[%clk 0:01:55]} 16... Qe8
{[%clk 0:02:22.4]} 17. exd6 {[%clk 0:01:54.5]} 1-0

[Event "Late-Titled-Tuesday-Blitz-September-05-2023"]
[Site "Chess.com"]
[Date "2023.09.05"]
[Round "3"]
[White "DeTimmerman"]
[Black "vugarrasulov"]
[Result "0-1"]
[WhiteElo "2670"]
[BlackElo "2969"]
[TimeControl "180+1"]
[EndTime "14:24:27 PDT"]
[Termination "vugarrasulov won by resignation"]

1. b4 {[%clk 0:03:00]} 1... Nf6 {[%clk 0:02:59.2]} 2. Bb2 {[%clk 0:03:00.2]}
2... g6 {[%clk 0:03:00.1]} 3. b5 {[%clk 0:03:00.5]} 3... Bg7 {[%clk 0:03:00]} 4.
c4 {[%clk 0:03:01.4]} 4... O-O {[%clk 0:03:00.2]} 5. a4 {[%clk 0:03:02]} 5... d6
{[%clk 0:02:57.7]} 6. e3 {[%clk 0:03:00.5]} 6... e5 {[%clk 0:02:57.9]} 7. Nf3
{[%clk 0:03:00.9]} 7... e4 {[%clk 0:02:54.2]} 8. Nd4 {[%clk 0:03:00.8]} 8... c5
{[%clk 0:02:53.6]} 9. Nc2 {[%clk 0:03:00.7]} 9... Nbd7 {[%clk 0:02:49.9]} 10.
Be2 {[%clk 0:03:00.6]} 10... Re8 {[%clk 0:02:49.8]} 11. O-O {[%clk 0:03:00.4]}
11... Ne5 {[%clk 0:02:50.3]} 12. d4 {[%clk 0:02:49.7]} 12... exd3 {[%clk
0:02:48.8]} 13. Bxd3 {[%clk 0:02:50.2]} 13... Nxd3 {[%clk 0:02:44.5]} 14. Qxd3
{[%clk 0:02:51.1]} 14... Bf5 {[%clk 0:02:44.6]} 15. Qd1 {[%clk 0:02:48.5]} 15...
d5 {[%clk 0:02:43.9]} 16. Nba3 {[%clk 0:02:46.1]} 16... dxc4 {[%clk 0:02:40.1]}
17. Nxc4 {[%clk 0:02:14.2]} 17... Qxd1 {[%clk 0:02:38.2]} 18. Rfxd1 {[%clk
0:02:08.2]} 18... Bxc2 {[%clk 0:02:38.6]} 19. Rdc1 {[%clk 0:02:07.9]} 19... Bd3
{[%clk 0:02:24.7]} 20. Nd6 {[%clk 0:02:05.9]} 20... Ne4 {[%clk 0:02:20]} 0-1

[Event "Late-Titled-Tuesday-Blitz-September-05-2023"]
[Site "Chess.com"]
[Date "2023.09.05"]
[Round "3"]
[White "maurovargas01"]
[Black "ybothg"]
[Result "0-1"]
[WhiteElo "1865"]
[BlackElo "2507"]
[TimeControl "180+1"]
[EndTime "14:25:04 PDT"]
[Termination "ybothg won by resignation"]

1. e4 {[%clk 0:02:27.5]} 1... c5 {[%clk 0:02:58.3]} 2. Nc3 {[%clk 0:02:24.7]}
2... Nc6 {[%clk 0:02:57.8]} 3. f4 {[%clk 0:02:25.6]} 3... e6 {[%clk 0:02:57.7]}
4. Nf3 {[%clk 0:02:24.6]} 4... Nf6 {[%clk 0:02:57.8]} 5. Bb5 {[%clk 0:02:11.3]}
5... Nd4 {[%clk 0:02:56]} 6. Bf1 {[%clk 0:02:08]} 6... a6 {[%clk 0:02:51.7]} 7.
d3 {[%clk 0:02:08.3]} 7... d5 {[%clk 0:02:46.2]} 8. e5 {[%clk 0:02:07.1]} 8...
Nd7 {[%clk 0:02:45.8]} 9. Ne2 {[%clk 0:02:05.1]} 9... Nxf3+ {[%clk 0:02:38.9]}
10. gxf3 {[%clk 0:02:02.7]} 10... f6 {[%clk 0:02:33.1]} 11. exf6 {[%clk
0:01:51.4]} 11... Qxf6 {[%clk 0:02:34]} 12. Ng3 {[%clk 0:01:49.2]} 12... Bd6
{[%clk 0:02:33.1]} 13. Ne2 {[%clk 0:01:31.9]} 13... Qh4+ {[%clk 0:02:29.3]} 14.
Ng3 {[%clk 0:01:27.1]} 14... Bxf4 {[%clk 0:02:28.6]} 15. Kf2 {[%clk 0:00:59.4]}
15... Bxg3+ {[%clk 0:02:23.7]} 0-1

[Event "Late-Titled-Tuesday-Blitz-September-05-2023"]
[Site "Chess.com"]
[Date "2023.09.05"]
[Round "3"]
[White "sterpfi"]
[Black "chessisveryfun1264"]
[Result "0-1"]
[WhiteElo "2151"]
[BlackElo "2509"]
[TimeControl "180+1"]
[EndTime "14:25:30 PDT"]
[Termination "chessisveryfun1264 won by resignation"]

1. e4 {[%clk 0:03:00]} 1... e6 {[%clk 0:02:53]} 2. d4 {[%clk 0:02:59.8]} 2... d5
{[%clk 0:02:49.3]} 3. exd5 {[%clk 0:03:00.7]} 3... exd5 {[%clk 0:02:48.8]} 4.
Nf3 {[%clk 0:03:01.3]} 4... Nc6 {[%clk 0:02:48.6]} 5. Bb5 {[%clk 0:03:00.8]}
5... Bg4 {[%clk 0:02:47.8]} 6. O-O {[%clk 0:02:34.9]} 6... Bd6 {[%clk
0:02:47.2]} 7. c4 {[%clk 0:02:34.3]} 7... dxc4 {[%clk 0:02:46.2]} 8. d5 {[%clk
0:02:34.1]} 8... a6 {[%clk 0:02:46.6]} 9. Ba4 {[%clk 0:02:32.9]} 9... b5 {[%clk
0:02:47]} 10. dxc6 {[%clk 0:02:33]} 10... bxa4 {[%clk 0:02:47.4]} 11. Nbd2
{[%clk 0:02:27.4]} 11... Ne7 {[%clk 0:02:27.6]} 12. Nxc4 {[%clk 0:02:22]} 12...
Bc5 {[%clk 0:02:25]} 13. Qxd8+ {[%clk 0:01:50.2]} 13... Rxd8 {[%clk 0:02:25.9]}
14. Nfe5 {[%clk 0:01:50.7]} 14... Be6 {[%clk 0:02:26.1]} 15. Be3 {[%clk
0:01:47.5]} 15... Bxe3 {[%clk 0:02:19.7]} 16. Nxe3 {[%clk 0:01:43]} 16... f6
{[%clk 0:02:16.3]} 17. Nd3 {[%clk 0:01:29.6]} 17... Rxd3 {[%clk 0:02:15.2]} 18.
Rfe1 {[%clk 0:01:25]} 18... Kf7 {[%clk 0:02:13.7]} 19. Rac1 {[%clk 0:01:23.3]}
19... Rhd8 {[%clk 0:02:13.5]} 20. f4 {[%clk 0:01:17.8]} 20... Bxa2 {[%clk
0:02:13.2]} 21. Nc4 {[%clk 0:01:08.4]} 21... Bxc4 {[%clk 0:02:12.8]} 22. Rxc4
{[%clk 0:01:09.3]} 22... Rd1 {[%clk 0:02:13.3]} 23. Kf1 {[%clk 0:01:06.9]} 23...
Rxe1+ {[%clk 0:02:10.2]} 24. Kxe1 {[%clk 0:01:06.9]} 24... Rd6 {[%clk
0:02:10.5]} 25. Rxa4 {[%clk 0:01:03.9]} 25... Rxc6 {[%clk 0:02:11.4]} 0-1

[Event "Late-Titled-Tuesday-Blitz-September-05-2023"]
[Site "Chess.com"]
[Date "2023.09.05"]
[Round "3"]
[White "Hikaru"]
[Black "NovakCabarkapa"]
[Result "1-0"]
[WhiteElo "3248"]
[BlackElo "2805"]
[TimeControl "180+1"]
[EndTime "14:25:38 PDT"]
[Termination "Hikaru won by resignation"]

1. a3 {[%clk 0:02:39.5]} 1... g6 {[%clk 0:02:54.9]} 2. c4 {[%clk 0:02:37.4]}
2... Bg7 {[%clk 0:02:55]} 3. Nc3 {[%clk 0:02:35.2]} 3... e5 {[%clk 0:02:52.4]}
4. g3 {[%clk 0:02:35.5]} 4... d6 {[%clk 0:02:52.2]} 5. Bg2 {[%clk 0:02:35.8]}
5... Nh6 {[%clk 0:02:52.6]} 6. d3 {[%clk 0:02:35.9]} 6... O-O {[%clk 0:02:52.8]}
7. h4 {[%clk 0:02:36]} 7... c6 {[%clk 0:02:49]} 8. h5 {[%clk 0:02:35.9]} 8... g5
{[%clk 0:02:49.2]} 9. Nf3 {[%clk 0:02:32.1]} 9... f6 {[%clk 0:02:47.1]} 10. b4
{[%clk 0:02:32.3]} 10... Nf7 {[%clk 0:02:40.9]} 11. b5 {[%clk 0:02:26]} 11... h6
{[%clk 0:02:40.3]} 12. Rb1 {[%clk 0:02:25.5]} 12... f5 {[%clk 0:02:39.6]} 13.
bxc6 {[%clk 0:02:26.1]} 13... bxc6 {[%clk 0:02:00.4]} 14. Bb2 {[%clk 0:02:24.8]}
14... Be6 {[%clk 0:01:42.8]} 15. Nd2 {[%clk 0:02:24.4]} 15... d5 {[%clk
0:01:25.5]} 16. cxd5 {[%clk 0:02:15.9]} 16... cxd5 {[%clk 0:01:25.7]} 17. Qb3
{[%clk 0:02:16.1]} 17... Nc6 {[%clk 0:01:25.5]} 18. Nxd5 {[%clk 0:02:12.2]}
18... Rb8 {[%clk 0:01:19.5]} 19. Qc4 {[%clk 0:01:56.1]} 19... Qd6 {[%clk
0:01:15.4]} 20. Qxc6 {[%clk 0:01:53.1]} 1-0

[Event "Late-Titled-Tuesday-Blitz-September-05-2023"]
[Site "Chess.com"]
[Date "2023.09.05"]
[Round "3"]
[White "realburq"]
[Black "KejJaj"]
[Result "1-0"]
[WhiteElo "2379"]
[BlackElo "2193"]
[TimeControl "180+1"]
[EndTime "14:25:42 PDT"]
[Termination "realburq won by checkmate"]

1. d4 {[%clk 0:02:56.6]} 1... f5 {[%clk 0:02:59.2]} 2. Nc3 {[%clk 0:02:56.5]}
2... Nf6 {[%clk 0:02:59]} 3. e4 {[%clk 0:02:52.2]} 3... fxe4 {[%clk 0:02:55.7]}
4. f3 {[%clk 0:02:52.1]} 4... d5 {[%clk 0:02:49.1]} 5. fxe4 {[%clk 0:02:51.9]}
5... dxe4 {[%clk 0:02:48.5]} 6. Bc4 {[%clk 0:02:51.3]} 6... Bg4 {[%clk
0:02:36.2]} 7. Nge2 {[%clk 0:02:51.3]} 7... Nc6 {[%clk 0:02:29.5]} 8. O-O {[%clk
0:02:45.6]} 8... e6 {[%clk 0:02:13.3]} 9. h3 {[%clk 0:02:35.2]} 9... Bxe2 {[%clk
0:02:07.9]} 10. Nxe2 {[%clk 0:02:35.7]} 10... Qd7 {[%clk 0:01:50.8]} 11. Nf4
{[%clk 0:02:34.5]} 11... Qxd4+ {[%clk 0:01:46.5]} 12. Qxd4 {[%clk 0:02:32.5]}
12... Nxd4 {[%clk 0:01:47.4]} 13. c3 {[%clk 0:02:28.5]} 13... Nc6 {[%clk
0:01:37.3]} 14. Nxe6 {[%clk 0:02:26.3]} 14... Rc8 {[%clk 0:01:24.7]} 15. Bg5
{[%clk 0:02:22.2]} 15... Nd7 {[%clk 0:01:14.1]} 16. Rad1 {[%clk 0:02:09.1]}
16... Nce5 {[%clk 0:01:08.8]} 17. Rxf8+ {[%clk 0:02:03.3]} 17... Nxf8 {[%clk
0:00:36.7]} 18. Nxg7# {[%clk 0:02:01.3]} 1-0

[Event "Late-Titled-Tuesday-Blitz-September-05-2023"]
[Site "Chess.com"]
[Date "2023.09.05"]
[Round "3"]
[White "Jaka_Brilej"]
[Black "acertijo08"]
[Result "0-1"]
[WhiteElo "2465"]
[BlackElo "2298"]
[TimeControl "180+1"]
[EndTime "14:25:44 PDT"]
[Termination "acertijo08 won by resignation"]

1. e4 {[%clk 0:03:00.9]} 1... e5 {[%clk 0:02:59]} 2. Nf3 {[%clk 0:03:00.7]} 2...
Nc6 {[%clk 0:02:58.9]} 3. Bc4 {[%clk 0:03:00.7]} 3... Bc5 {[%clk 0:02:58.4]} 4.
c3 {[%clk 0:03:01.1]} 4... Nf6 {[%clk 0:02:58.1]} 5. d3 {[%clk 0:03:00.8]} 5...
O-O {[%clk 0:02:54.1]} 6. O-O {[%clk 0:03:00.5]} 6... d6 {[%clk 0:02:53.9]} 7.
Nbd2 {[%clk 0:02:59.8]} 7... a6 {[%clk 0:02:54]} 8. Bb3 {[%clk 0:02:59.4]} 8...
Ba7 {[%clk 0:02:53.9]} 9. Re1 {[%clk 0:02:59.2]} 9... Ne7 {[%clk 0:02:52.8]} 10.
Nf1 {[%clk 0:02:59.2]} 10... h6 {[%clk 0:02:51.7]} 11. h3 {[%clk 0:02:58.8]}
11... Ng6 {[%clk 0:02:51.8]} 12. Bc2 {[%clk 0:02:57.8]} 12... Re8 {[%clk
0:02:49.8]} 13. g4 {[%clk 0:02:57.5]} 13... d5 {[%clk 0:02:39.9]} 14. exd5
{[%clk 0:02:56.1]} 14... Nxd5 {[%clk 0:02:37.3]} 15. Ng3 {[%clk 0:02:52.3]}
15... Ndf4 {[%clk 0:02:34.1]} 16. d4 {[%clk 0:02:45]} 16... exd4 {[%clk
0:02:28.4]} 17. Rxe8+ {[%clk 0:02:43.1]} 17... Qxe8 {[%clk 0:02:28.1]} 18. Nxd4
{[%clk 0:02:38.6]} 18... Nxh3+ {[%clk 0:02:23.4]} 19. Kh2 {[%clk 0:02:37.1]}
19... Nhf4 {[%clk 0:02:09.9]} 20. Bxf4 {[%clk 0:02:36.5]} 20... Nxf4 {[%clk
0:02:08]} 21. Qf3 {[%clk 0:02:36.3]} 21... Bxd4 {[%clk 0:01:58.9]} 22. cxd4
{[%clk 0:02:35.6]} 22... Ng6 {[%clk 0:01:51.7]} 23. Nf5 {[%clk 0:02:29.3]} 23...
Qd8 {[%clk 0:01:30.9]} 24. Re1 {[%clk 0:02:11.9]} 24... Bxf5 {[%clk 0:01:23.8]}
25. Bxf5 {[%clk 0:02:08.1]} 25... Qh4+ {[%clk 0:01:16.9]} 26. Kg2 {[%clk
0:02:03.8]} 26... c6 {[%clk 0:01:12.5]} 27. d5 {[%clk 0:01:58.2]} 27... cxd5
{[%clk 0:01:08.9]} 28. Qxd5 {[%clk 0:01:57.4]} 28... Nf4+ {[%clk 0:01:08.8]} 29.
Kf3 {[%clk 0:01:57.4]} 29... Nxd5 {[%clk 0:01:09.3]} 0-1

[Event "Late-Titled-Tuesday-Blitz-September-05-2023"]
[Site "Chess.com"]
[Date "2023.09.05"]
[Round "3"]
[White "Jenia84"]
[Black "Hilary46"]
[Result "0-1"]
[WhiteElo "2335"]
[BlackElo "2578"]
[TimeControl "180+1"]
[EndTime "14:26:08 PDT"]
[Termination "Hilary46 won by resignation"]

1. e4 {[%clk 0:02:56.1]} 1... e5 {[%clk 0:02:59.8]} 2. Nf3 {[%clk 0:02:54.9]}
2... Nc6 {[%clk 0:03:00.3]} 3. Bb5 {[%clk 0:02:53]} 3... a6 {[%clk 0:03:00.9]}
4. Ba4 {[%clk 0:02:52.7]} 4... Nf6 {[%clk 0:03:01.5]} 5. O-O {[%clk 0:02:52.6]}
5... Nxe4 {[%clk 0:03:02.1]} 6. Re1 {[%clk 0:02:51.8]} 6... Nc5 {[%clk
0:03:01.5]} 7. Bxc6 {[%clk 0:02:51.1]} 7... dxc6 {[%clk 0:03:01.9]} 8. d4 {[%clk
0:02:50.3]} 8... Ne6 {[%clk 0:03:01.2]} 9. Nxe5 {[%clk 0:02:48.9]} 9... Be7
{[%clk 0:03:00.7]} 10. c3 {[%clk 0:02:48.5]} 10... O-O {[%clk 0:03:00.4]} 11.
Nd2 {[%clk 0:02:49]} 11... c5 {[%clk 0:03:00.6]} 12. Ndf3 {[%clk 0:02:33.8]}
12... cxd4 {[%clk 0:03:00.7]} 13. cxd4 {[%clk 0:02:33.9]} 13... Qd5 {[%clk
0:02:57.2]} 14. Bd2 {[%clk 0:02:29.3]} 14... b6 {[%clk 0:02:51.2]} 15. b3 {[%clk
0:02:24.1]} 15... Bb7 {[%clk 0:02:51]} 16. Rc1 {[%clk 0:02:19.1]} 16... Nxd4
{[%clk 0:02:41.5]} 17. Rxc7 {[%clk 0:02:07.5]} 17... Bd6 {[%clk 0:02:40.9]} 18.
Rd7 {[%clk 0:01:49.3]} 18... Nxf3+ {[%clk 0:02:22.6]} 19. gxf3 {[%clk 0:01:32]}
19... Bc8 {[%clk 0:02:12.3]} 20. Rxd6 {[%clk 0:00:40.2]} 20... Qxd6 {[%clk
0:02:11.7]} 21. Bc3 {[%clk 0:00:36]} 21... Qxd1 {[%clk 0:02:09.7]} 22. Rxd1
{[%clk 0:00:36.9]} 22... Be6 {[%clk 0:02:03.6]} 23. f4 {[%clk 0:00:34.2]} 23...
Rfd8 {[%clk 0:02:01.1]} 24. Rxd8+ {[%clk 0:00:32.5]} 24... Rxd8 {[%clk
0:02:00.9]} 25. Bb4 {[%clk 0:00:32.7]} 25... a5 {[%clk 0:01:57.1]} 0-1

[Event "Late-Titled-Tuesday-Blitz-September-05-2023"]
[Site "Chess.com"]
[Date "2023.09.05"]
[Round "3"]
[White "FaustinoOro"]
[Black "KrokerGuy"]
[Result "1-0"]
[WhiteElo "2866"]
[BlackElo "2497"]
[TimeControl "180+1"]
[EndTime "14:26:10 PDT"]
[Termination "FaustinoOro won by resignation"]

1. Nf3 {[%clk 0:03:00.9]} 1... Nf6 {[%clk 0:02:58.5]} 2. b3 {[%clk 0:03:00.5]}
2... e6 {[%clk 0:02:58.6]} 3. Bb2 {[%clk 0:03:00.8]} 3... d5 {[%clk 0:02:58.8]}
4. e3 {[%clk 0:03:00.5]} 4... c5 {[%clk 0:02:59.4]} 5. Be2 {[%clk 0:03:00.6]}
5... Nc6 {[%clk 0:02:59.8]} 6. O-O {[%clk 0:03:01.2]} 6... Be7 {[%clk
0:03:00.5]} 7. d4 {[%clk 0:02:59.4]} 7... O-O {[%clk 0:02:59.5]} 8. c4 {[%clk
0:02:59.6]} 8... b6 {[%clk 0:02:53.3]} 9. a3 {[%clk 0:02:57.3]} 9... cxd4 {[%clk
0:02:48.3]} 10. Nxd4 {[%clk 0:02:56.5]} 10... Nxd4 {[%clk 0:02:47.3]} 11. Bxd4
{[%clk 0:02:57.4]} 11... Bb7 {[%clk 0:02:45.2]} 12. Bf3 {[%clk 0:02:55]} 12...
Qc7 {[%clk 0:02:42]} 13. Nd2 {[%clk 0:02:21.9]} 13... dxc4 {[%clk 0:02:21.5]}
14. Nxc4 {[%clk 0:02:20.9]} 14... Rfd8 {[%clk 0:01:45.8]} 15. Qe2 {[%clk
0:02:14.3]} 15... Bd5 {[%clk 0:01:34.2]} 16. Bxd5 {[%clk 0:01:59.5]} 16... Nxd5
{[%clk 0:01:28.4]} 17. Rac1 {[%clk 0:01:54]} 17... Qb7 {[%clk 0:01:13.3]} 18.
Qf3 {[%clk 0:01:51.7]} 18... Rab8 {[%clk 0:01:11.2]} 19. Rfd1 {[%clk 0:01:46.6]}
19... Qa6 {[%clk 0:01:02.4]} 20. Ne5 {[%clk 0:01:40.3]} 20... Rbc8 {[%clk
0:00:43.9]} 21. Qxf7+ {[%clk 0:01:39.3]} 21... Kh8 {[%clk 0:00:42.9]} 22. Ng6+
{[%clk 0:01:40.1]} 1-0

[Event "Late-Titled-Tuesday-Blitz-September-05-2023"]
[Site "Chess.com"]
[Date "2023.09.05"]
[Round "3"]
[White "ameetghasi100"]
[Black "YEIKO2017"]
[Result "1-0"]
[WhiteElo "2682"]
[BlackElo "2430"]
[TimeControl "180+1"]
[EndTime "14:26:16 PDT"]
[Termination "ameetghasi100 won by resignation"]

1. Nf3 {[%clk 0:03:00.9]} 1... c5 {[%clk 0:02:59.7]} 2. g3 {[%clk 0:03:01.2]}
2... g6 {[%clk 0:02:58.7]} 3. Bg2 {[%clk 0:03:02.1]} 3... Bg7 {[%clk 0:02:58.8]}
4. O-O {[%clk 0:03:02.6]} 4... Nf6 {[%clk 0:02:59.4]} 5. c3 {[%clk 0:03:03.2]}
5... O-O {[%clk 0:02:59.1]} 6. d3 {[%clk 0:03:03.9]} 6... d5 {[%clk 0:02:58.2]}
7. Qa4 {[%clk 0:03:03.8]} 7... Nc6 {[%clk 0:02:57.6]} 8. Qh4 {[%clk 0:03:04.4]}
8... Qd7 {[%clk 0:02:51.3]} 9. h3 {[%clk 0:03:03.7]} 9... b6 {[%clk 0:02:51.5]}
10. Bg5 {[%clk 0:03:02.1]} 10... Bb7 {[%clk 0:02:50.9]} 11. Nbd2 {[%clk
0:02:59.7]} 11... Rac8 {[%clk 0:02:38]} 12. e4 {[%clk 0:02:58.9]} 12... dxe4
{[%clk 0:02:29.3]} 13. dxe4 {[%clk 0:02:59.8]} 13... Rfd8 {[%clk 0:02:11.3]} 14.
Rfe1 {[%clk 0:02:57.2]} 14... Qe6 {[%clk 0:01:59.7]} 15. e5 {[%clk 0:02:28.5]}
15... Nd5 {[%clk 0:01:37.6]} 16. Bh6 {[%clk 0:02:28.2]} 16... f6 {[%clk
0:01:08.5]} 17. Bxg7 {[%clk 0:02:22.9]} 17... Kxg7 {[%clk 0:01:09.4]} 18. exf6+
{[%clk 0:02:23.2]} 18... Qxf6 {[%clk 0:01:09]} 19. Ng5 {[%clk 0:02:19]} 19... h6
{[%clk 0:00:57.3]} 20. Ne6+ {[%clk 0:02:15]} 20... Kh7 {[%clk 0:00:57.7]} 21.
Qxf6 {[%clk 0:02:08.7]} 21... Nxf6 {[%clk 0:00:55.7]} 22. Nxd8 {[%clk
0:02:08.2]} 22... Rxd8 {[%clk 0:00:55.9]} 23. Nc4 {[%clk 0:02:08.6]} 23... b5
{[%clk 0:00:45.9]} 24. Bxc6 {[%clk 0:01:56.2]} 24... Bxc6 {[%clk 0:00:45]} 25.
Rxe7+ {[%clk 0:01:56.3]} 25... Kg8 {[%clk 0:00:45.5]} 26. Re6 {[%clk 0:01:47.4]}
1-0

[Event "Late-Titled-Tuesday-Blitz-September-05-2023"]
[Site "Chess.com"]
[Date "2023.09.05"]
[Round "3"]
[White "rochaaaaaaaaaa"]
[Black "Sinquefield"]
[Result "0-1"]
[WhiteElo "2262"]
[BlackElo "2470"]
[TimeControl "180+1"]
[EndTime "14:26:16 PDT"]
[Termination "Sinquefield won by resignation"]

1. e4 {[%clk 0:03:00.9]} 1... e6 {[%clk 0:02:45.8]} 2. d4 {[%clk 0:02:59.6]}
2... d5 {[%clk 0:02:45.6]} 3. Nc3 {[%clk 0:02:58.4]} 3... dxe4 {[%clk
0:02:40.6]} 4. Nxe4 {[%clk 0:02:57.9]} 4... Bd7 {[%clk 0:02:41.4]} 5. Nf3 {[%clk
0:02:56.4]} 5... Bc6 {[%clk 0:02:41.6]} 6. Bd3 {[%clk 0:02:57.1]} 6... Nd7
{[%clk 0:02:41.9]} 7. c3 {[%clk 0:02:56.8]} 7... Ngf6 {[%clk 0:02:40.4]} 8.
Nxf6+ {[%clk 0:02:57.1]} 8... Nxf6 {[%clk 0:02:40.5]} 9. Bf4 {[%clk 0:02:57.3]}
9... Bd6 {[%clk 0:02:40.2]} 10. Ne5 {[%clk 0:02:49.7]} 10... Bxe5 {[%clk
0:02:31.3]} 11. Bxe5 {[%clk 0:02:48.2]} 11... Qd5 {[%clk 0:02:19.7]} 12. Qe2
{[%clk 0:02:28]} 12... Qxg2 {[%clk 0:02:14.1]} 13. O-O-O {[%clk 0:02:27.3]}
13... Bf3 {[%clk 0:02:12]} 14. Qe3 {[%clk 0:02:04.3]} 14... Bxd1 {[%clk
0:02:10.2]} 15. Rxd1 {[%clk 0:02:05.2]} 15... Nd5 {[%clk 0:01:19.8]} 16. Qe2
{[%clk 0:01:54.6]} 16... O-O-O {[%clk 0:01:11.2]} 17. Kb1 {[%clk 0:01:54.4]}
17... Nf6 {[%clk 0:01:02.2]} 18. Bxf6 {[%clk 0:01:32.5]} 18... gxf6 {[%clk
0:01:01.1]} 19. Be4 {[%clk 0:01:33]} 19... Qxh2 {[%clk 0:00:45.4]} 20. Qb5
{[%clk 0:01:31.8]} 20... c6 {[%clk 0:00:45.1]} 21. Qa5 {[%clk 0:01:32.2]} 0-1

[Event "Late-Titled-Tuesday-Blitz-September-05-2023"]
[Site "Chess.com"]
[Date "2023.09.05"]
[Round "3"]
[White "Truequitos"]
[Black "The_Machine04"]
[Result "0-1"]
[WhiteElo "2434"]
[BlackElo "2608"]
[TimeControl "180+1"]
[EndTime "14:26:30 PDT"]
[Termination "The_Machine04 won by resignation"]

1. e4 {[%clk 0:03:00.9]} 1... d6 {[%clk 0:03:00.2]} 2. d3 {[%clk 0:02:59.5]}
2... Nf6 {[%clk 0:03:00.7]} 3. Nd2 {[%clk 0:02:59.8]} 3... e5 {[%clk 0:03:01.3]}
4. g3 {[%clk 0:03:00.3]} 4... c5 {[%clk 0:03:01.6]} 5. Bg2 {[%clk 0:03:00.7]}
5... Nc6 {[%clk 0:03:01.7]} 6. Ngf3 {[%clk 0:03:01.3]} 6... Be7 {[%clk
0:03:02.5]} 7. O-O {[%clk 0:03:01.5]} 7... O-O {[%clk 0:03:03.4]} 8. a4 {[%clk
0:02:46.5]} 8... Be6 {[%clk 0:02:59.1]} 9. Ng5 {[%clk 0:02:39.9]} 9... Bg4
{[%clk 0:02:58.8]} 10. f3 {[%clk 0:02:40.5]} 10... Bd7 {[%clk 0:02:58.2]} 11. f4
{[%clk 0:02:33.8]} 11... h6 {[%clk 0:02:58.3]} 12. Ngf3 {[%clk 0:02:25.7]} 12...
Be6 {[%clk 0:02:58]} 13. f5 {[%clk 0:02:23]} 13... Bd7 {[%clk 0:02:58.3]} 14.
Nc4 {[%clk 0:02:16.7]} 14... Nd4 {[%clk 0:02:57.7]} 15. c3 {[%clk 0:02:13.4]}
15... Nxf3+ {[%clk 0:02:57]} 16. Qxf3 {[%clk 0:02:14.3]} 16... Bc6 {[%clk
0:02:56.9]} 17. Ne3 {[%clk 0:02:13.1]} 17... a6 {[%clk 0:02:54.8]} 18. a5 {[%clk
0:02:11.5]} 18... Rb8 {[%clk 0:02:50]} 19. Ng4 {[%clk 0:01:54.7]} 19... Nxg4
{[%clk 0:02:46.7]} 20. Qxg4 {[%clk 0:01:55.5]} 20... Bg5 {[%clk 0:02:47.4]} 21.
h4 {[%clk 0:01:49.4]} 21... Bxc1 {[%clk 0:02:46.8]} 22. Raxc1 {[%clk 0:01:38.8]}
22... f6 {[%clk 0:02:44.3]} 23. b4 {[%clk 0:01:36.5]} 23... Rc8 {[%clk
0:02:41.7]} 24. Qe2 {[%clk 0:01:24.7]} 24... cxb4 {[%clk 0:02:36.1]} 25. cxb4
{[%clk 0:01:24.3]} 25... Bb5 {[%clk 0:02:36.7]} 26. Bf3 {[%clk 0:01:21.5]} 26...
Qd7 {[%clk 0:02:34.8]} 27. g4 {[%clk 0:01:15.3]} 27... Rxc1 {[%clk 0:02:34]} 28.
Rxc1 {[%clk 0:01:16.2]} 28... Rc8 {[%clk 0:02:34.5]} 29. Rc2 {[%clk 0:01:15.2]}
29... Rxc2 {[%clk 0:02:23.2]} 30. Qxc2 {[%clk 0:01:15.3]} 30... Qc6 {[%clk
0:02:24]} 31. Qxc6 {[%clk 0:01:13.6]} 31... bxc6 {[%clk 0:02:24.9]} 32. Be2
{[%clk 0:01:10.9]} 32... d5 {[%clk 0:02:25.4]} 33. Bf1 {[%clk 0:01:10.9]} 33...
Kf8 {[%clk 0:02:24.7]} 34. Kf2 {[%clk 0:01:09.9]} 34... Ke7 {[%clk 0:02:24.9]}
35. Ke3 {[%clk 0:01:08.2]} 35... Kd6 {[%clk 0:02:25.2]} 36. Be2 {[%clk
0:00:57.2]} 36... d4+ {[%clk 0:02:24.4]} 37. Kd2 {[%clk 0:00:56.7]} 37... c5
{[%clk 0:02:25.3]} 38. Kc2 {[%clk 0:00:47.2]} 38... cxb4 {[%clk 0:02:25]} 39.
Kb3 {[%clk 0:00:47.6]} 39... Kc5 {[%clk 0:02:25.4]} 40. Bf1 {[%clk 0:00:42.6]}
40... Be8 {[%clk 0:02:25]} 0-1